bitfinex/quotes_SOLUSD_20250624
["timestamp","ask_amount","ask_price","bid_price","bid_amount"]
[1750791517828,2.42988058,144.04,143.96,44.64964886]
[1750791518013,6.26,144.03,143.96,44.64964886]
[1750791519246,0.694348,144.02,143.96,44.64964886]
[1750791521941,0.694348,144.02,143.96,51.59598738]
[1750791522348,0.694348,144.02,143.96,44.64964886]
[1750791531754,2.43021801,144.02,143.96,26.0]
[1750791533758,5.90195804,144.02,143.96,26.0]
[1750791533955,2.43021801,144.02,143.96,26.0]
[1750791537359,2.43021801,144.02,143.93,6.94780158]
[1750791537580,2.43021801,144.02,143.93,32.94780158]
[1750791537759,2.43021801,144.02,143.93,26.0]
[1750791539545,18.64964886,144.01,143.88,13.50236604]
[1750791539745,18.64964886,144.01,143.88,7.90995298]
[1750791539746,18.64964886,143.99,143.88,7.90995298]
[1750791540069,18.64964886,143.97,143.88,7.90995298]
[1750791540259,35.9,143.96,143.84,18.64964886]
[1750791540461,18.64964886,143.95,143.83,7.9587]
[1750791540666,23.80485655,143.95,143.83,7.9587]
[1750791541379,44.65491693,143.96,143.86,18.64964886]
[1750791541571,2.43139978,143.95,143.86,25.60072844]
[1750791541876,28.43139978,143.95,143.86,25.60072844]
[1750791542261,28.43139978,143.95,143.86,18.64964886]
[1750791543179,28.43139978,143.95,143.86,25.60074452]
[1750791544481,28.43139978,143.95,143.86,18.64964886]
[1750791544987,18.64964886,143.94,143.84,18.64964886]
[1750791545656,2.43173764,143.93,143.84,18.64964886]
[1750791546060,2.43173764,143.93,143.84,25.60169334]
[1750791547079,35.9,143.96,143.84,25.60169334]
[1750791547080,21.08104864,143.95,143.84,25.60169334]
[1750791548158,24.55447691,143.95,143.84,18.64964886]
[1750791549678,26.0,143.93,143.84,25.60162786]
[1750791550579,0.69483046,143.92,143.84,114.30162786]
[1750791558785,0.69478218,143.93,143.84,131.68205055]
[1750791559894,2.43173764,143.93,143.84,114.30162786]
[1750791560183,5.97033764,143.93,143.84,114.30162786]
[1750791564092,5.97033764,143.93,143.84,107.34964886]
[1750791564596,5.97033764,143.93,143.84,114.30173207]
[1750791564973,5.97033764,143.93,143.84,107.34964886]
[1750791565171,5.97033764,143.93,143.84,114.30176434]
[1750791565366,22.18824886,143.92,143.8,7.3484825]
[1750791565582,3.5386,143.91,143.8,7.3484825]
[1750791565789,3.5386,143.89,143.8,7.3484825]
[1750791565989,2.43292088,143.86,143.8,7.3484825]
[1750791567086,2.29082088,143.86,143.8,7.3484825]
[1750791568265,1.73780063,143.86,143.8,7.3484825]
[1750791569069,0.69507193,143.87,143.8,7.3484825]
[1750791570172,2.43275177,143.87,143.8,14.3025363]
[1750791572603,2.43275177,143.87,143.8,7.3484825]
[1750791573097,0.69507193,143.87,143.8,40.30255071]
[1750791574383,0.55297193,143.87,143.81,18.64964886]
[1750791575584,0.55297193,143.87,143.81,25.60325059]
[1750791575792,0.55297193,143.87,143.81,18.64964886]
[1750791576698,0.55297193,143.87,143.81,25.60326567]
[1750791577087,0.55297193,143.87,143.81,20.20644886]
[1750791577488,0.55297193,143.87,143.81,27.15987618]
[1750791578372,26.0,143.9,143.81,115.85987618]
[1750791578593,32.6,143.9,143.81,115.85987618]
[1750791580181,0.69497532,143.89,143.81,115.85987618]
[1750791580704,2.43241364,143.89,143.81,108.90644886]
[1750791585898,5.90729028,143.89,143.81,108.90644886]
[1750791586808,18.64964886,143.88,143.8,7.3484825]
[1750791586990,29.26,143.87,143.8,7.3484825]
[1750791588012,34.41468008,143.87,143.8,7.3484825]
[1750791588708,5.90852215,143.86,143.8,7.3484825]
[1750791590315,31.90852215,143.86,143.8,7.3484825]
[1750791598633,18.64964886,143.85,143.8,7.3484825]
[1750791598813,18.64964886,143.83,143.74,1.5054]
[1750791599122,2.43376676,143.81,143.74,1.5054]
[1750791600126,0.55326193,143.81,143.75,18.64964886]
[1750791601621,0.55321358,143.82,143.77,18.64964886]
[1750791602317,29.2,143.81,143.72,1.564]
[1750791602624,32.56,143.8,143.72,1.564]
[1750791603004,37.71465011,143.8,143.72,1.564]
[1750791603215,31.15116878,143.8,143.72,1.564]
[1750791603530,35.6179,143.79,143.72,1.564]
[1750791603722,7.25545865,143.79,143.72,1.564]
[1750791604028,8.99410528,143.79,143.73,18.64964886]
[1750791604322,8.99410528,143.79,143.77,6.65053054]
[1750791605212,8.99410528,143.79,143.76,6.65053054]
[1750791606131,8.99410528,143.79,143.77,6.65053054]
[1750791607121,8.99410528,143.79,143.76,6.65053054]
[1750791607325,8.99410528,143.79,143.72,1.564]
[1750791607511,15.64463582,143.79,143.74,6.65053054]
[1750791608029,8.85200528,143.79,143.76,6.65053054]
[1750791609214,8.85200528,143.79,143.72,1.564]
[1750791609406,15.50253582,143.79,143.75,6.65053054]
[1750791609608,15.50253582,143.79,143.74,6.65053054]
[1750791610641,8.85200528,143.79,143.75,6.65053054]
[1750791610829,15.50253582,143.79,143.74,6.65053054]
[1750791611507,18.97982909,143.79,143.72,1.564]
[1750791611706,18.97982909,143.79,143.74,6.65053054]
[1750791611907,6.65053054,143.78,143.73,6.65053054]
[1750791612208,2.4344439,143.77,143.73,6.65053054]
[1750791612525,29.28,143.76,143.73,6.65053054]
[1750791614229,2.4347826,143.75,143.73,6.65053054]
[1750791616831,0.6955554,143.77,143.74,6.65053054]
[1750791617009,0.6955554,143.77,143.76,6.65053054]
[1750791617210,5.9122209,143.77,143.7,1.4635324]
[1750791617429,12.56275144,143.77,143.72,6.65053054]
[1750791617835,0.6955554,143.77,143.75,6.65053054]
[1750791618014,2.4344439,143.77,143.76,6.65053054]
[1750791618931,1.7388885,143.77,143.76,6.65053054]
[1750791619133,1.7388885,143.77,143.75,6.65053054]
[1750791619932,1.7388885,143.77,143.73,1.5863]
[1750791620164,1.7388885,143.77,143.75,6.65053054]
[1750791622014,1.7388885,143.77,143.76,6.65053054]
[1750791623120,2.4344439,143.77,143.76,6.65053054]
[1750791623636,2.4344439,143.77,143.73,1.5863]
[1750791623930,2.4344439,143.77,143.75,6.65053054]
[1750791625520,2.4344439,143.77,143.73,1.5863]
[1750791625727,2.4344439,143.77,143.75,6.65053054]
[1750791628632,2.4344439,143.77,143.73,1.5863]
[1750791628831,29.24,143.76,143.72,6.65053054]
[1750791629035,6.65053054,143.75,143.7,9.65956294]
[1750791629257,29.24,143.76,143.7,1.4635324]
[1750791629258,25.3001794,143.74,143.7,1.4635324]
[1750791629828,2.4351214,143.73,143.7,1.4635324]
[1750791630149,6.56,143.72,143.7,8.11406294]
[1750791630723,6.4179,143.72,143.71,6.65053054]
[1750791631849,0.6958458,143.71,143.7,1.4635324]
[1750791632049,0.6958458,143.71,143.7,8.11406294]
[1750791634228,35.89053054,143.76,143.7,8.11406294]
[1750791634229,152.60647836,143.82,143.71,1.5315]
[1750791634427,7.2755554,143.77,143.74,6.65053054]
[1750791634646,35.0144439,143.77,143.73,6.65053054]
[1750791635348,35.0144439,143.77,143.74,6.65053054]
[1750791635734,35.0144439,143.77,143.73,6.65053054]
[1750791637161,34.3146233,143.77,143.71,1.5315]
[1750791637462,25.3001794,143.76,143.71,6.65053054]
[1750791637640,2.4347826,143.75,143.71,6.65053054]
[1750791637832,2.4347826,143.75,143.72,6.65053054]
[1750791639063,2.4347826,143.75,143.7,1.4635324]
[1750791639258,2.4347826,143.75,143.72,6.65053054]
[1750791639963,2.4347826,143.75,143.7,1.4635324]
[1750791640161,9.08531314,143.75,143.71,6.65053054]
[1750791640335,29.22,143.74,143.71,6.65053054]
[1750791642138,0.69574897,143.73,143.7,1.4635324]
[1750791642339,0.69574897,143.73,143.71,6.65053054]
[1750791644944,0.69574897,143.73,143.72,6.65053054]
[1750791646261,0.55364897,143.73,143.72,6.65053054]
[1750791647767,0.69570057,143.74,143.72,6.65053054]
[1750791648062,0.69570057,143.74,143.73,6.65053054]
[1750791649243,2.43495199,143.74,143.7,1.4635324]
[1750791649452,25.3001794,143.73,143.7,1.4635324]
[1750791649761,0.6958458,143.71,143.7,1.4635324]
[1750791651270,0.6958458,143.71,143.7,8.11406294]
[1750791653264,0.6958458,143.71,143.7,1.4635324]
[1750791656064,29.83582015,143.72,143.7,8.11406294]
[1750791656274,29.83582015,143.72,143.71,6.65053054]
[1750791656452,0.69582015,143.72,143.71,6.65053054]
[1750791658582,0.69582015,143.72,143.7,8.11406294]
[1750791658763,29.08,143.71,143.7,1.4635324]
[1750791659071,29.7758458,143.71,143.7,1.4635324]
[1750791660357,29.7758458,143.71,143.7,8.11406294]
[1750791660758,29.7758458,143.71,143.7,1.4635324]
[1750791660963,36.42637634,143.71,143.7,1.4635324]
[1750791661367,29.7758458,143.71,143.7,1.4635324]
[1750791661889,29.6337458,143.71,143.7,1.4635324]
[1750791662174,29.6337458,143.71,143.7,8.11406294]
[1750791662680,0.6958458,143.71,143.7,7.61406294]
[1750791663184,0.69579738,143.72,143.7,7.61406294]
[1750791663481,0.69579738,143.72,143.71,6.65053054]
[1750791663695,2.43455448,143.77,143.71,6.65053054]
[1750791663898,8.97455448,143.77,143.76,6.65053054]
[1750791664358,8.97455448,143.77,143.75,6.65053054]
[1750791664991,8.97455448,143.77,143.7,0.9635324]
[1750791665230,8.97455448,143.77,143.75,6.65053054]
[1750791665891,8.97455448,143.77,143.74,6.65053054]
[1750791666491,35.81053054,143.76,143.72,6.65053054]
[1750791666673,29.16,143.76,143.72,6.65053054]
[1750791666980,29.0179,143.76,143.74,6.65053054]
[1750791667367,0.6955554,143.77,143.75,6.65053054]
[1750791667684,7.2355554,143.77,143.76,6.65053054]
[1750791667874,7.2355554,143.77,143.75,6.65053054]
[1750791668660,7.2355554,143.77,143.76,6.65053054]
[1750791668866,7.0934554,143.77,143.76,6.65053054]
[1750791671602,7.0934554,143.77,143.74,7.5744]
[1750791671902,7.0934554,143.77,143.76,6.65053054]
[1750791674577,0.69545453,143.8,143.76,6.65053054]
[1750791674879,7.23545453,143.8,143.79,6.65053054]
[1750791676293,7.23545453,143.8,143.77,6.65053054]
[1750791676294,8.97398026,143.8,143.77,6.65053054]
[1750791676874,8.97398026,143.8,143.78,6.65053054]
[1750791678297,8.83188026,143.8,143.78,6.65053054]
[1750791678484,8.83188026,143.8,143.77,6.65053054]
[1750791678876,37.89188026,143.8,143.77,6.65053054]
[1750791679092,37.89188026,143.8,143.74,7.5744]
[1750791679292,37.89188026,143.8,143.77,6.65053054]
[1750791679500,37.89188026,143.8,143.78,6.65053054]
[1750791679795,37.33852573,143.8,143.79,6.65053054]
[1750791679998,37.33852573,143.8,143.78,6.65053054]
[1750791681023,38.03398026,143.8,143.76,6.65053054]
[1750791681387,38.03398026,143.8,143.77,6.65053054]
[1750791682089,38.03398026,143.8,143.78,6.65053054]
[1750791682478,38.03398026,143.8,143.77,6.65053054]
[1750791682817,38.03398026,143.8,143.74,7.5744]
[1750791682818,38.03398026,143.8,143.76,6.65053054]
[1750791683299,6.65053054,143.78,143.7,8.8312324]
[1750791683502,29.08,143.77,143.73,6.65053054]
[1750791683703,35.73053054,143.77,143.73,6.65053054]
[1750791683878,25.3001794,143.76,143.71,6.65053054]
[1750791684410,29.08,143.77,143.72,6.65053054]
[1750791684614,35.73053054,143.77,143.73,6.65053054]
[1750791684911,35.73053054,143.77,143.72,6.65053054]
[1750791685115,9.08514378,143.76,143.72,6.65053054]
[1750791686116,2.43461324,143.76,143.72,6.65053054]
[1750791687217,2.43461324,143.76,143.7,8.8312324]
[1750791687419,2.43461324,143.76,143.72,6.65053054]
[1750791687603,2.43461324,143.76,143.7,8.8312324]
[1750791687921,2.29251324,143.76,143.73,6.65053054]
[1750791689317,2.29251324,143.76,143.74,6.65053054]
[1750791690426,29.08,143.77,143.75,6.65053054]
[1750791690618,6.54,143.79,143.76,6.65053054]
[1750791690918,6.54,143.79,143.77,6.65053054]
[1750791691094,13.19053054,143.79,143.7,8.8312324]
[1750791691424,6.65053054,143.78,143.7,8.8312324]
[1750791691631,29.04,143.77,143.74,6.65053054]
[1750791693226,0.69560378,143.76,143.74,6.65053054]
[1750791693605,0.69560378,143.76,143.75,6.65053054]
[1750791694007,0.69560378,143.76,143.74,6.65053054]
[1750791694227,0.69560378,143.76,143.7,8.8312324]
[1750791694531,0.69560378,143.76,143.74,6.65053054]
[1750791695728,2.43461324,143.76,143.74,6.65053054]
[1750791702446,6.46,143.75,143.73,6.65053054]
[1750791703344,6.46,143.75,143.7,8.8312324]
[1750791703518,6.46,143.75,143.73,6.65053054]
[1750791704239,0.69570057,143.74,143.73,6.65053054]
[1750791704544,31.37495199,143.74,143.7,9.23416294]
[1750791705239,31.37495199,143.74,143.71,6.65053054]
[1750791705439,31.23285199,143.74,143.71,6.65053054]
[1750791705638,29.49360057,143.74,143.73,6.65053054]
[1750791706029,0.55360057,143.74,143.73,6.65053054]
[1750791707243,6.46,143.75,143.73,12.97863054]
[1750791707444,6.46,143.75,143.74,6.65053054]
[1750791708026,7.15565217,143.75,143.74,6.65053054]
[1750791708525,7.15565217,143.75,143.73,6.3281]
[1750791708724,6.3179,143.75,143.74,6.65053054]
[1750791712345,7.01355217,143.75,143.74,6.65053054]
[1750791712545,6.3179,143.75,143.74,6.65053054]
[1750791712728,6.1758,143.75,143.74,6.65053054]
[1750791712927,0.69545865,143.79,143.74,6.65053054]
[1750791713148,7.15545865,143.79,143.77,6.65053054]
[1750791714624,7.15545865,143.79,143.78,6.65053054]
[1750791714625,7.01335865,143.79,143.78,6.65053054]
[1750791717056,7.01335865,143.79,143.74,8.62002285]
[1750791717057,7.01335865,143.79,143.74,1.6631]
[1750791717253,7.01335865,143.79,143.78,6.65053054]
[1750791721431,8.75200528,143.79,143.74,1.6631]
[1750791721651,8.75200528,143.79,143.77,6.65053054]
[1750791725159,8.75200528,143.79,143.78,6.65053054]
[1750791725849,8.19864663,143.79,143.78,6.65053054]
[1750791726863,8.89410528,143.79,143.78,6.65053054]
[1750791729873,8.89410528,143.79,143.77,6.65053054]
[1750791732471,12.37139855,143.79,143.74,1.6631]
[1750791732798,12.37139855,143.79,143.67,6.46]
[1750791732799,6.65053054,143.75,143.67,1.5429]
[1750791732943,6.65053054,143.73,143.69,6.65053054]
[1750791733147,6.38,143.72,143.69,6.65053054]
[1750791733543,6.38,143.72,143.67,1.5429]
[1750791733765,6.65053054,143.71,143.67,6.65053054]
[1750791734160,0.6958458,143.71,143.67,6.65053054]
[1750791734557,0.5537458,143.71,143.7,7.61406294]
[1750791734744,0.5537458,143.71,143.7,0.9635324]
[1750791737363,0.5537458,143.71,143.7,7.61406294]
[1750791738079,0.5537458,143.71,143.7,0.9635324]
[1750791738657,7.20427634,143.71,143.7,0.9635324]
[1750791738871,51.8539252,143.71,143.7,0.9635324]
[1750791739162,29.3925252,143.71,143.7,0.9635324]
[1750791739379,37.51065186,143.71,143.7,0.9635324]
[1750791739862,30.30637552,143.71,143.7,0.9635324]
[1750791740071,36.95690606,143.71,143.7,0.9635324]
[1750791740971,37.65275186,143.71,143.7,0.9635324]
[1750791742182,66.77275186,143.71,143.7,0.9635324]
[1750791742394,26.0,143.67,143.66,0.04911249]
[1750791743483,26.69603953,143.67,143.66,0.04911249]
[1750791745095,51.99621893,143.67,143.66,0.04911249]
[1750791746983,55.46827263,143.67,143.66,0.04911249]
[1750791749576,18.64964886,143.66,143.56,1.6099]
[1750791749880,6.65053054,143.62,143.58,6.65053054]
[1750791750085,35.44,143.65,143.6,6.65053054]
[1750791750086,28.9179,143.61,143.6,6.65053054]
[1750791750295,29.06,143.62,143.6,6.65053054]
[1750791750591,29.06,143.62,143.58,6.65053054]
[1750791751294,35.71053054,143.62,143.58,6.65053054]
[1750791751702,0.69633033,143.61,143.58,6.65053054]
[1750791752991,2.43715617,143.61,143.58,6.65053054]
[1750791753371,0.69631752,143.62,143.56,1.6099]
[1750791753583,0.69623337,143.63,143.61,6.65053054]
[1750791753772,0.69623337,143.63,143.6,6.65053054]
[1750791756594,2.43681681,143.63,143.56,1.6099]
[1750791756779,2.43681681,143.63,143.56,8.57558405]
[1750791757096,2.43681681,143.63,143.6,6.65053054]
[1750791757494,2.43681681,143.63,143.61,6.65053054]
[1750791757885,2.43681681,143.63,143.62,6.65053054]
[1750791757886,0.55413337,143.63,143.62,6.65053054]
[1750791759204,0.55413337,143.63,143.62,5.65053054]
[1750791759377,0.55413337,143.63,143.61,6.65053054]
[1750791762313,2.29471681,143.63,143.56,1.6099]
[1750791762477,18.64964886,143.62,143.59,6.65053054]
[1750791762893,54.3001794,143.62,143.58,6.65053054]
[1750791763090,2.43715617,143.61,143.58,6.65053054]
[1750791763518,25.3001794,143.6,143.55,6.5287]
[1750791763816,18.64964886,143.6,143.57,6.65053054]
[1750791764606,18.64964886,143.6,143.55,6.5287]
[1750791764789,2.43749563,143.59,143.57,6.65053054]
[1750791764982,6.44,143.58,143.57,6.65053054]
[1750791766180,6.44,143.58,143.55,6.5287]
[1750791766384,6.44,143.58,143.57,6.65053054]
[1750791766603,6.44,143.58,143.56,6.65053054]
[1750791766805,0.69652434,143.57,143.56,6.65053054]
[1750791768896,7.136496,143.58,143.56,6.65053054]
[1750791769102,6.44,143.58,143.57,6.65053054]
[1750791769610,7.13647583,143.58,143.57,6.65053054]
[1750791772914,6.44,143.58,143.57,6.65053054]
[1750791773092,7.13647583,143.58,143.57,6.65053054]
[1750791773485,8.87766541,143.58,143.55,6.5287]
[1750791773686,8.87766541,143.58,143.55,6.65053054]
[1750791774886,8.87766541,143.58,143.53,1.585]
[1750791775113,8.87766541,143.58,143.55,6.65053054]
[1750791776709,8.87766541,143.58,143.53,1.585]
[1750791776895,8.87766541,143.58,143.55,6.65053054]
[1750791778209,8.87766541,143.58,143.53,1.585]
[1750791778516,8.87766541,143.58,143.55,6.65053054]
[1750791779626,7.13647583,143.58,143.53,1.585]
[1750791779917,7.13647583,143.58,143.56,6.65053054]
[1750791780295,7.13647583,143.58,143.53,1.585]
[1750791780497,32.48150857,143.62,143.57,6.65053054]
[1750791780498,1.74072514,143.62,143.57,6.65053054]
[1750791780704,0.69633033,143.61,143.54,18.64964886]
[1750791780903,0.69633033,143.61,143.58,6.65053054]
[1750791782016,2.43700699,143.62,143.59,6.65053054]
[1750791783593,2.43700699,143.62,143.58,6.65053054]
[1750791783796,9.08753753,143.62,143.57,6.65053054]
[1750791784225,9.08753753,143.62,143.58,6.65053054]
[1750791784540,2.43700699,143.62,143.59,6.65053054]
[1750791784896,2.29490699,143.62,143.59,6.65053054]
[1750791785100,2.29490699,143.62,143.57,6.1654]
[1750791785368,2.29490699,143.62,143.59,6.65053054]
[1750791785998,2.29490699,143.62,143.58,6.65053054]
[1750791786830,2.29490699,143.62,143.59,6.65053054]
[1750791789942,0.69628185,143.62,143.61,6.65053054]
[1750791790225,7.09625326,143.63,143.61,6.65053054]
[1750791790430,7.09625326,143.63,143.62,6.65053054]
[1750791793025,7.09625326,143.63,143.58,1.6139]
[1750791793431,7.09625326,143.63,143.61,6.65053054]
[1750791794228,8.8368367,143.63,143.61,6.65053054]
[1750791794531,8.8368367,143.63,143.58,1.6139]
[1750791794732,8.8368367,143.63,143.6,6.65053054]
[1750791795142,8.8368367,143.63,143.58,1.6139]
[1750791795316,44.42736724,143.63,143.59,6.65053054]
[1750791797346,25.3001794,143.62,143.58,6.65053054]
[1750791798120,18.64964886,143.62,143.58,6.65053054]
[1750791799446,2.43715617,143.61,143.59,6.65053054]
[1750791800211,2.43715617,143.61,143.54,1.6356]
[1750791800410,2.43715617,143.61,143.59,6.65053054]
[1750791801333,9.08768671,143.61,143.54,90.3356]
[1750791801533,9.08768671,143.61,143.57,6.65053054]
[1750791801736,2.43715617,143.61,143.57,6.65053054]
[1750791802653,6.65053054,143.6,143.54,90.3356]
[1750791803146,5.91880786,143.61,143.56,6.65053054]
[1750791803322,18.64964886,143.6,143.56,6.65053054]
[1750791803526,2.43749563,143.59,143.56,6.65053054]
[1750791804150,2.43749563,143.59,143.54,90.3356]
[1750791804151,2.29539563,143.59,143.57,6.65053054]
[1750791804312,2.29539563,143.59,143.54,90.3356]
[1750791804313,2.29539563,143.59,143.54,1.6356]
[1750791804555,2.29539563,143.59,143.58,6.65053054]
[1750791804918,0.55432732,143.59,143.58,6.65053054]
[1750791805114,0.69637593,143.61,143.58,6.65053054]
[1750791805319,0.69637593,143.61,143.6,6.65053054]
[1750791805515,0.69628185,143.62,143.6,6.65053054]
[1750791805718,0.69628185,143.62,143.61,6.65053054]
[1750791806239,0.55418185,143.62,143.61,6.65053054]
[1750791807037,0.55418185,143.62,143.6,6.65053054]
[1750791807335,0.55418185,143.62,143.58,6.65053054]
[1750791807336,34.94541702,143.62,143.58,6.65053054]
[1750791807728,28.94,143.61,143.58,6.65053054]
[1750791809430,18.64964886,143.6,143.56,6.65053054]
[1750791809745,2.43749563,143.59,143.55,6.65053054]
[1750791810342,2.43749563,143.59,143.54,1.6356]
[1750791810538,25.3001794,143.58,143.54,6.65053054]
[1750791810725,6.4,143.57,143.54,6.65053054]
[1750791811116,6.4,143.57,143.5,8.99064518]
[1750791811657,2.43800501,143.56,143.53,6.65053054]
[1750791812345,2.43800501,143.56,143.5,1.6268]
[1750791812525,2.43800501,143.56,143.53,6.65053054]
[1750791813917,2.43800501,143.56,143.5,1.6268]
[1750791814118,2.43800501,143.56,143.53,6.65053054]
[1750791814834,0.55447286,143.56,143.55,6.65053054]
[1750791816652,0.55447286,143.56,143.52,6.65053054]
[1750791816856,0.55447286,143.56,143.55,6.65053054]
[1750791817151,0.55447286,143.56,143.5,90.3268]
[1750791817455,0.55447286,143.56,143.55,6.65053054]
[1750791818556,2.29590501,143.56,143.54,6.65053054]
[1750791819270,2.29590501,143.56,143.5,90.3268]
[1750791819468,2.29590501,143.56,143.5,1.6268]
[1750791819830,8.94643555,143.56,143.52,6.65053054]
[1750791820833,8.94643555,143.56,143.5,1.6268]
[1750791821033,8.94643555,143.56,143.52,6.65053054]
[1750791821648,18.64964886,143.55,143.52,6.65053054]
[1750791822058,28.94,143.54,143.46,122.6437]
[1750791822257,35.59053054,143.54,143.5,6.65053054]
[1750791822463,35.59053054,143.54,143.46,7.9437]
[1750791822667,35.59053054,143.54,143.49,6.65053054]
[1750791822841,0.69671845,143.53,143.51,6.65053054]
[1750791823051,0.69671845,143.53,143.46,7.9437]
[1750791823249,12.57263741,143.53,143.46,7.9437]
[1750791823451,12.57263741,143.53,143.48,6.65053054]
[1750791823651,9.08904513,143.53,143.49,6.65053054]
[1750791824447,2.43851459,143.53,143.5,6.65053054]
[1750791825173,2.43851459,143.53,143.46,7.9437]
[1750791825349,9.08904513,143.53,143.49,6.65053054]
[1750791825554,2.43851459,143.53,143.47,0.404]
[1750791825781,2.43851459,143.53,143.49,6.65053054]
[1750791826169,12.57263741,143.53,143.49,6.65053054]
[1750791827159,2.43851459,143.53,143.5,6.65053054]
[1750791827563,9.08904513,143.53,143.47,0.404]
[1750791827767,2.43851459,143.53,143.49,6.65053054]
[1750791828285,2.43851459,143.53,143.47,0.404]
[1750791828479,2.43851459,143.53,143.49,6.65053054]
[1750791828851,2.43851459,143.53,143.47,0.404]
[1750791829064,2.43851459,143.53,143.49,6.65053054]
[1750791829272,2.43851459,143.53,143.47,0.404]
[1750791829469,2.43851459,143.53,143.5,6.65053054]
[1750791829753,2.43851459,143.53,143.47,0.404]
[1750791829754,2.43851459,143.53,143.51,6.65053054]
[1750791829952,2.43851459,143.53,143.47,0.404]
[1750791830257,2.43851459,143.53,143.51,6.65053054]
[1750791831388,2.43851459,143.53,143.5,6.65053054]
[1750791832309,6.65053054,143.51,143.42,1.4635324]
[1750791832487,6.65053054,143.47,143.43,6.65053054]
[1750791832683,35.59053054,143.47,143.43,6.65053054]
[1750791833086,2.43970444,143.46,143.43,6.65053054]
[1750791833984,2.43970444,143.46,143.42,8.11406294]
[1750791834204,2.43970444,143.46,143.43,6.65053054]
[1750791834874,2.43970444,143.46,143.42,1.4635324]
[1750791834875,0.55495841,143.46,143.45,6.65053054]
[1750791835075,0.69691267,143.49,143.45,6.65053054]
[1750791835302,0.69691267,143.49,143.47,6.65053054]
[1750791836520,0.69691267,143.49,143.42,8.43600847]
[1750791836814,0.69691267,143.49,143.47,6.65053054]
[1750791837004,7.09696124,143.48,143.47,6.65053054]
[1750791838222,7.09696124,143.48,143.42,1.4635324]
[1750791838381,8.83936436,143.48,143.42,1.4635324]
[1750791838710,8.83936436,143.48,143.45,6.65053054]
[1750791838889,8.83936436,143.48,143.46,6.65053054]
[1750791839079,8.83936436,143.48,143.42,1.4635324]
[1750791839314,8.83936436,143.48,143.45,6.65053054]
[1750791840180,8.83936436,143.48,143.42,1.4635324]
[1750791840379,8.83936436,143.48,143.45,6.65053054]
[1750791840897,8.83936436,143.48,143.42,1.4635324]
[1750791841103,15.4898949,143.48,143.42,1.4635324]
[1750791841301,8.83936436,143.48,143.44,6.65053054]
[1750791841718,8.83936436,143.48,143.45,6.65053054]
[1750791842903,8.83936436,143.48,143.42,1.4635324]
[1750791843205,6.65053054,143.47,143.43,6.65053054]
[1750791843397,18.97470114,143.48,143.43,6.65053054]
[1750791843597,18.97470114,143.48,143.42,1.4635324]
[1750791843797,8.83936436,143.48,143.45,6.65053054]
[1750791844005,6.65053054,143.47,143.42,1.4635324]
[1750791844201,6.65053054,143.47,143.43,6.65053054]
[1750791844388,2.43970444,143.46,143.43,6.65053054]
[1750791844693,38.05023498,143.46,143.42,8.11406294]
[1750791844889,38.05023498,143.46,143.42,1.4635324]
[1750791845889,38.05023498,143.46,143.42,8.11406294]
[1750791846721,38.05023498,143.46,143.42,1.4635324]
[1750791847092,38.05023498,143.46,143.42,8.11406294]
[1750791849022,31.39970444,143.46,143.42,1.4635324]
[1750791849316,31.39970444,143.46,143.43,6.65053054]
[1750791850194,31.39970444,143.46,143.42,1.4635324]
[1750791850394,31.39970444,143.46,143.42,8.11406294]
[1750791850694,38.05023498,143.46,143.42,8.11406294]
[1750791850893,31.39970444,143.46,143.42,8.11406294]
[1750791851612,31.39970444,143.46,143.42,1.4635324]
[1750791851820,31.39970444,143.46,143.42,8.11406294]
[1750791852414,38.05023498,143.46,143.42,8.11406294]
[1750791853519,6.65053054,143.44,143.42,1.4635324]
[1750791853701,35.61053054,143.43,143.42,1.4635324]
[1750791854517,29.65720421,143.43,143.42,1.4635324]
[1750791855628,29.65720421,143.43,143.42,8.11406294]
[1750791856020,29.65720421,143.43,143.42,1.4635324]
[1750791856826,29.65720421,143.43,143.42,8.11406294]
[1750791857916,0.69720421,143.43,143.42,8.11406294]
[1750791858113,7.09720421,143.43,143.42,8.11406294]
[1750791858427,13.74773475,143.43,143.42,1.4635324]
[1750791860307,32.39738361,143.43,143.42,1.4635324]
[1750791861213,25.74685307,143.43,143.42,1.4635324]
[1750791861414,32.39738361,143.43,143.42,1.4635324]
[1750791862029,54.70685307,143.43,143.42,1.4635324]
[1750791862335,61.35738361,143.43,143.42,1.4635324]
[1750791864042,87.35738361,143.43,143.42,1.4635324]
[1750791865037,80.70685307,143.43,143.42,1.4635324]
[1750791865240,87.35738361,143.43,143.42,1.4635324]
[1750791867330,80.70685307,143.43,143.42,1.4635324]
[1750791867525,87.35738361,143.43,143.42,1.4635324]
[1750791867840,62.05720421,143.43,143.42,1.4635324]
[1750791868046,36.05720421,143.43,143.42,1.4635324]
[1750791868249,7.09720421,143.43,143.42,8.11406294]
[1750791868452,0.697107,143.45,143.42,8.11406294]
[1750791868667,7.09707766,143.46,143.44,6.65053054]